Cogmind - Beta 16.1 @@@ ROGUE MODE // 2026.06.17 @ 15:32:36 Player: Lazz Result: Destroyed by S-43 Plague with Heavy Machine Gun Performance ------------- Evolutions (7) 3500 Regions Visited (20) 4000 Robots Destroyed (214) 1070 Value Destroyed (9672) 9672 Prototype IDs (2) 40 Alien Tech Used (0) 0 Bonus (5129) 5129 TOTAL SCORE: 23411 Bonus ------- High Alert Combat Kills 682 Follower Combat Kills 247 Entered Garrisons 1200 Used RIF Installer 2500 Entered DSFs 500 Cogmind --------- Core Integrity 0/1300 Matter 137/300 Energy 100/100 System Corruption 5% Temperature Cool (0) Movement Core (50) Location -3/Garrison Parts ------- > --- POWER (2) -------- (None) > --- PROPULSION (4) --- (None) > --- UTILITY (11) ----- Improved Power Shielding System Shield Relay Coupler [Grunt] (37) > --- WEAPON (4) ------- (None) > --- INVENTORY (5) ---- Armored Heavy Treads Heavy Linear Accelerator Peak State ------------ > --- POWER ------------ Makeshift Power Source Light Antimatter Reactor > --- PROPULSION ------- Armored Heavy Treads Armored Heavy Treads > --- UTILITY ---------- Advanced Heat Sink Improved Power Shielding Improved Power Shielding Improved Power Shielding Hacking Suite System Shield System Shield Relay Coupler [NC] Relay Coupler [NC] Relay Coupler [Grunt] Relay Coupler [Grunt] > --- WEAPON ----------- Heavy Linear Accelerator Heavy Linear Accelerator > --- INVENTORY -------- Armored Heavy Treads HERF Cannon Mass Driver Remote Datajack [Rating: 109] Favorites ----------- Power Light Nuclear Core Engine Improved Deuterium Engine Power Core Light Nuclear Core Reactor Light Antimatter Reactor Propulsion Advanced Treads Treads Advanced Treads Leg Aluminum Leg Wheel Centrium Wheel Hover Unit Antigrav System Flight Unit Impulse Thruster Utility Hacking Suite Device Advanced Heat Sink Storage Medium Storage Unit Processor Improved Targeting Computer Hackware Hacking Suite Protection Improved Medium Armor Plating Weapon Flak Gun Energy Gun Gatling Laser Energy Cannon HERF Cannon Ballistic Gun Flak Gun Ballistic Cannon Mass Driver Special Weapon Remote Datajack Slashing Weapon Scythe Build | -11 -10 -10 -8 -8 -8 -7 -7 -7 -7 -6 -6 -6 -6 -5 -5 -4 -4 -4 -3 -3 ------- Run | Yrd Mat Sub Mat Gar Mat Fac Gar Fac Gar Fac Gar Fac Gar Fac DSF Fac Upp Upp Res Gar Slots Evolved 14 | . . . 4 . . 2 . . . 2 . . . 2 . 2 . . 2 . Power 1 | . . . . . . . . . . 1 . . . . . . . . . . Propulsion 2 | . . . 1 . . . . . . . . . . . . 1 . . . . Utility 9 | . . . 2 . . 2 . . . 1 . . . 1 . 1 . . 2 . Weapon 2 | . . . 1 . . . . . . . . . . 1 . . . . . . Parts Attached 162 | 6 14 2 2 20 10 18 5 9 14 8 6 . 2 6 5 6 12 . 10 7 Power 22 | 1 2 . . 3 1 2 . 1 5 1 2 . . 2 . . 1 . 1 . Engine 9 | 1 1 . . . . 2 . . 2 . . . . 2 . . 1 . . . Core 12 | . 1 . . 3 1 . . 1 3 1 2 . . . . . . . . . Reactor 1 | . . . . . . . . . . . . . . . . . . . 1 . Propulsion 44 | 2 6 . . 7 8 3 1 1 3 1 . . . 4 . 1 4 . 2 1 Treads 26 | . . . . 4 8 3 1 1 3 1 . . . . . . 2 . 2 1 Leg 11 | 2 6 . . 3 . . . . . . . . . . . . . . . . Wheel 1 | . . . . . . . . . . . . . . . . . 1 . . . Hover 5 | . . . . . . . . . . . . . . 4 . . 1 . . . Flight 1 | . . . . . . . . . . . . . . . . 1 . . . . Utility 53 | 1 3 . 2 4 1 7 2 4 3 2 2 . 2 . 4 2 4 . 6 4 Device 16 | 1 . . . 2 1 1 1 . 2 1 . . 1 . . 2 3 . . 1 Storage 2 | . . . 1 . . . . . . . . . . . 1 . . . . . Processor 6 | . 3 . 1 . . . . 2 . . . . . . . . . . . . Hackware 15 | . . . . . . 3 1 1 1 1 2 . . . 3 . . . . 3 Protection 14 | . . . . 2 . 3 . 1 . . . . 1 . . . 1 . 6 . Artifact . | . . . . . . . . . . . . . . . . . . . . . Weapon 43 | 2 3 2 . 6 . 6 2 3 3 4 2 . . . 1 3 3 . 1 2 Energy Gun 8 | 2 2 1 . . . . . . 1 . 1 . . . . . 1 . . . Energy Cannon 1 | . . . . . . . . . . . . . . . . . 1 . . . Ballistic Gun 22 | . 1 1 . 5 . 4 2 3 2 3 1 . . . . . . . . . Ballistic Cannon 10 | . . . . 1 . 1 . . . . . . . . 1 3 1 . 1 2 Launcher . | . . . . . . . . . . . . . . . . . . . . . Special Weapon 1 | . . . . . . 1 . . . . . . . . . . . . . . Impact Weapon . | . . . . . . . . . . . . . . . . . . . . . Slashing Weapon 1 | . . . . . . . . . . 1 . . . . . . . . . . Piercing Weapon . | . . . . . . . . . . . . . . . . . . . . . Special Melee Weapon . | . . . . . . . . . . . . . . . . . . . . . Unidentified Prototypes 2 | . . . . . . . . . . 1 . . . . . 1 . . . . Parts Lost 69 | . . . . 9 1 7 2 5 8 1 2 . 9 2 2 3 . . 3 15 Power 12 | . . . . 2 . 1 . . 2 . 1 . 2 . 1 1 . . . 2 Propulsion 14 | . . . . 1 . 1 . . 4 . 1 . 1 2 1 1 . . . 2 Utility 25 | . . . . 3 1 3 1 1 1 . . . 3 . . 1 . . 3 8 Weapon 18 | . . . . 3 . 2 1 4 1 1 . . 3 . . . . . . 3 Highest Loss Streak 14 | . . . . 4 1 3 2 2 2 1 1 . 6 8 2 3 . . 2 14 To Critical Strikes 1 | . . . . . . . . . . . 1 . . . . . . . . . Average Backups 6 | 2 4 5 4 8 9 9 9 9 6 4 5 5 5 4 4 4 4 5 4 3 Power . | . . . . . . . . 1 . . . . . . . . . . . . Propulsion 1 | 1 2 3 3 1 1 2 2 1 . . . . . . . . . . . 1 Utility 1 | . . 1 . 4 4 2 1 2 1 . . . . . . . . . . . Weapon 2 | 1 . . . 1 3 2 4 3 3 4 4 4 4 4 3 2 3 4 2 1 Tool/Special . | . . . . . . . . . . . . . . . . . . . . . Unused Backups 16 | . 1 . . 1 5 1 . 1 3 1 . . . . 1 . . . 1 1 Power 1 | . . . . . . . . . 1 . . . . . . . . . . . Propulsion 1 | . . . . 1 . . . . . . . . . . . . . . . . Utility 5 | . . . . . 2 . . 1 2 . . . . . . . . . . . Weapon 7 | . 1 . . . 2 . . . . 1 . . . . 1 . . . 1 1 Tool/Special 2 | . . . . . 1 1 . . . . . . . . . . . . . . Average Slot Usage (%) 88 | . 97 100 73 91 98 97 97 99 97 92 90 86 82 29 40 50 42 89 78 72 Engine 3 | . 11 14 9 . . 4 7 4 3 . . . . 2 6 4 1 5 4 3 Core 4 | . 2 . . 7 9 2 . 2 3 12 11 13 9 . . . . . . . Treads 14 | . . . . 19 27 23 23 23 21 13 12 6 6 . . . 3 10 8 7 Leg 3 | . 28 28 18 7 . . . . . . . . . . . . . . . . Device 9 | . 2 . . 7 10 16 7 7 12 13 13 13 8 . . 4 6 15 9 2 Storage 3 | . . . 4 9 9 7 7 7 2 . . . . . 1 3 . . . . Processor 6 | . 22 28 24 10 . . . 5 9 6 6 6 6 2 . . . . . . Hackware 14 | . . . . . . 7 8 19 20 26 26 26 26 17 19 25 21 21 19 25 Protection 5 | . . . . 6 15 11 20 5 . . . . 3 . . . . 5 10 17 Energy Gun 5 | . 27 25 9 5 . . . . 3 6 12 6 6 . . . . 5 2 . Ballistic Gun 12 | . . 2 9 17 26 21 21 18 18 10 6 13 12 . . . . . . . Ballistic Cannon 1 | . . . . . . . . . . . . . . . 3 5 2 10 12 10 Peak Build Rating 109 | 8 13 15 19 35 43 49 46 46 49 60 62 59 59 17 23 53 75 77 104 109 Average Rating 41 | 4 10 11 18 26 36 46 44 44 43 45 60 59 54 10 17 34 30 77 82 87 On Entrance 37 | . 8 11 15 19 32 42 46 45 45 39 60 59 59 13 9 23 12 75 77 99 Avg Prop Armor Cover (%) 11 | . . . . . . . . . . . . . . . . . 12 12 10 . Naked Turns . | . . . . . . . . . . . . . . . . . . . . . Heaviest Build 77 | 7 11 11 19 41 41 49 51 42 30 24 24 24 24 3 22 62 50 56 75 77 Greatest Support 120 | 20 20 20 20 60 64 64 64 70 72 97 97 75 75 12 12 7 56 16 120 120 Greatest Overweight (x) 8 | . . . . 1 . . . . . . . . . . 1 8 3 3 3 2 Average Overweight (x) . | . . . . . . . . . . . . . . . . 2 . 3 1 . Largest Inventory Capacity 15 | 5 5 5 10 10 10 10 10 10 10 5 5 5 5 5 15 15 5 5 5 5 Average Capacity 7 | 5 5 5 8 10 10 10 10 10 6 5 5 5 5 5 6 11 5 5 5 5 Most Carried 10 | 4 5 5 5 10 10 10 10 10 10 5 5 5 5 5 5 5 5 5 5 5 Average Carried 6 | 2 4 5 4 8 9 9 9 9 6 4 5 5 5 4 4 4 4 5 4 4 Final Capacity 10 | 5 5 5 10 10 10 10 10 10 5 5 5 5 5 5 5 5 5 5 5 5 Final Carried 10 | 4 5 5 5 9 10 10 10 10 5 5 5 5 5 5 5 5 5 5 5 4 Class Distribution -------------------- 17% | Scavenger-Tank 16% | Scavenger-Gunner 16% | Hacker-Tank 13% | Mutant 10% | Tank 9% | Hacker-Mutant 3% | Gunner 3% | Derelict-Tank Dominant Class ---------------- Mutant | -10/Materials Mutant | -10/Subcaves Mutant | -8/Materials Gunner | -8/Garrison Scavenger-Tank | -8/Materials Tank | -7/Factory Scavenger-Tank | -7/Garrison Scavenger-Tank | -7/Factory Scavenger-Gunner | -7/Garrison Scavenger-Gunner | -6/Factory Hacker-Tank | -6/Garrison Hacker-Tank | -6/Factory Hacker-Tank | -6/Garrison Hacker-Mutant | -5/Factory Hacker-Mutant | -5/DSF Hacker-Mutant | -4/Factory Hacker-Mutant | -4/Upper Caves Derelict-Tank | -4/Upper Caves Derelict-Tank | -3/Research Bothacker-Tank | -3/Garrison Resources | -11 -10 -10 -8 -8 -8 -7 -7 -7 -7 -6 -6 -6 -6 -5 -5 -4 -4 -4 -3 -3 ----------- Run | Yrd Mat Sub Mat Gar Mat Fac Gar Fac Gar Fac Gar Fac Gar Fac DSF Fac Upp Upp Res Gar Matter Collected 6300 | 260 155 . . 706 544 1123 572 334 878 122 183 . 307 . 3 64 403 . 406 240 Remotely 166 | . . . . . . . . . . . . . . . . . 166 . . . Salvage Created 8013 | 154 600 . . 1190 1018 1468 625 363 942 103 380 . 559 . . 54 15 . 317 225 Parts 402 | 9 39 . . 44 71 76 33 27 42 8 14 . 23 . . 1 . . 5 10 Haulers Intercepted 6 | . 2 . . . 3 1 . . . . . . . . . . . . . . Recyclers Shooed 2 | . . . . . 2 . . . . . . . . . . . . . . . Parts Field Recycled . | . . . . . . . . . . . . . . . . . . . . . Retrieved Matter . | . . . . . . . . . . . . . . . . . . . . . Parts Self-Destructed . | . . . . . . . . . . . . . . . . . . . . . Prevented . | . . . . . . . . . . . . . . . . . . . . . Parts Restored . | . . . . . . . . . . . . . . . . . . . . . Kills | -11 -10 -10 -8 -8 -8 -7 -7 -7 -7 -6 -6 -6 -6 -5 -5 -4 -4 -4 -3 -3 ------- Run | Yrd Mat Sub Mat Gar Mat Fac Gar Fac Gar Fac Gar Fac Gar Fac DSF Fac Upp Upp Res Gar Combat Hostiles Destroyed 173 | . 12 . . 25 15 25 16 9 26 2 11 . 18 . . 2 . . 5 7 Guns 158 | . 12 . . 24 15 25 16 9 26 2 10 . 18 . . . . . 1 . Cannons 12 | . . . . 1 . . . . . . . . . . . 1 . . 4 6 AOE 2 | . . . . . . . . . . . . . . . . 1 . . . 1 Classes Destroyed 16 | 3 5 . . 4 2 1 . . . . . . 1 . . . . . . . Worker 13 | 1 3 . . . 3 6 . . . . . . . . . . . . . . Builder 2 | . . . . . 2 . . . . . . . . . . . . . . . Tunneler 3 | 3 . . . . . . . . . . . . . . . . . . . . Hauler 6 | . 2 . . . 3 1 . . . . . . . . . . . . . . Recycler 6 | 1 . . . . . 4 . . . . . . . . . . . . 1 . Mechanic 3 | . . . . 1 1 . . 1 . . . . . . . . . . . . Operator 4 | . 2 . . . 2 . . . . . . . . . . . . . . . Watcher 2 | . 2 . . . . . . . . . . . . . . . . . . . Swarmer 48 | . 4 . . . 5 8 4 3 7 . 6 . 7 . . . . . . 4 Saboteur 2 | . . . . . . . . . . . . . 2 . . . . . . . Grunt 73 | . 8 . . 18 4 8 11 1 10 . 3 . 5 . . . . . 4 1 Brawler 3 | . . . . 3 . . . . . . . . . . . . . . . . Duelist 4 | . . . . 1 2 . . . 1 . . . . . . . . . . . Sentry 26 | . . . . 3 4 6 1 2 5 . 1 . 2 . . . . . . 2 Hunter 8 | . . . . . 2 . . 1 1 2 . . . . . 2 . . . . Programmer 11 | . . . . . . 3 . 2 2 . 1 . 2 . . . . . 1 . Decomposer 1 | . . . . . . . . . . . . . . . . . 1 . . . Best Kill Streak 10 | 3 3 . . 5 10 6 7 3 4 2 3 . 3 . . 2 1 . 3 4 Combat Bots Only 7 | . 3 . . 5 7 5 7 3 4 2 3 . 3 . . 2 . . 3 4 Max Kills in Single Turn 2 | 1 2 . . 2 2 2 1 1 2 1 2 . 2 . . 1 1 . 2 1 Gunslinging 1 | . 1 . . 1 1 . . . 1 . 1 . 1 . . . . . . . Exploded 1 | . . . . . . . . . . . . . . . . 1 . . . 1 Melee . | . . . . . . . . . . . . . . . . . . . . . Uniques/NPCs Destroyed . | . . . . . . . . . . . . . . . . . . . . . Combat | -11 -10 -10 -8 -8 -8 -7 -7 -7 -7 -6 -6 -6 -6 -5 -5 -4 -4 -4 -3 -3 -------- Run | Yrd Mat Sub Mat Gar Mat Fac Gar Fac Gar Fac Gar Fac Gar Fac DSF Fac Upp Upp Res Gar Hostile Shots Fired 1425 | . 57 . . 102 98 204 91 101 226 21 37 . 155 . 5 34 6 . 94 194 Missed 426 | . 13 . . 33 33 65 25 32 87 8 10 . 43 . 2 10 . . 16 49 Hits 999 | . 44 . . 69 65 139 66 69 139 13 27 . 112 . 3 24 6 . 78 145 Melee 12 | . . . . 11 . . . . . . . . . . . . . . . 1 Projectile 987 | . 44 . . 58 65 139 66 69 139 13 27 . 112 . 3 24 6 . 78 144 Critical Strikes 22 | . . . . 4 2 1 1 . 1 . 1 . . . . 2 . . 8 2 Actively Blocked 1 | . . . . . . . . . . . . . . . . . . . . 1 Damage Taken 14971 | . 461 . . 1309 928 1461 891 815 1370 159 319 . 1281 . 224 617 156 . 1621 3359 Core 2758 | . 79 . . 184 58 133 26 73 206 26 42 . 188 . 22 249 156 . 184 1132 Absorbed by Shields 61 | . . . . . . . . . . . . . . . . . . . . 61 Reduced by Siege Mode 298 | . . . . . . . . . . . 7 . 61 . . . . . 147 83 Redirected to Shielding 303 | . . . . . . . . 102 . . . . 47 . . . . . . 154 Ignored by Resistances 277 | . . . . . . . . . 163 47 51 . 16 . . . . . . . Core Remaining (%) 70 | 100 . 68 . . 56 . . . 37 . . . 69 . 97 . . 64 . . Volleys Fired 513 | 9 40 . . 84 49 73 43 41 62 11 21 . 34 1 . 3 8 . 20 14 Largest 4 | 2 2 . . 3 3 3 3 3 3 3 3 . 3 1 . 4 1 . 4 3 Hottest 261 | 90 130 . . 97 90 85 79 84 136 123 175 . 123 5 . 188 51 . 261 145 Shots Fired 1258 | 18 76 . . 192 147 189 115 81 154 20 53 . 102 1 . 12 8 . 60 30 Gun 1114 | 18 76 . . 188 146 176 114 68 154 14 53 . 102 . . . . . 5 . Cannon 115 | . . . . 4 1 2 1 5 . . . . . . . 12 7 . 55 28 Launcher . | . . . . . . . . . . . . . . . . . . . . . Special 29 | . . . . . . 11 . 8 . 6 . . . 1 . . 1 . . 2 Kinetic 979 | . 5 . . 132 147 178 115 73 133 9 18 . 68 . . 12 7 . 54 28 Thermal 249 | 18 71 . . 60 . . . . 21 5 35 . 34 . . . . . 5 . Explosive . | . . . . . . . . . . . . . . . . . . . . . Electromagnetic 1 | . . . . . . . . . . . . . . . . . . . 1 . Robot Hit Streak 39 | 4 10 . . 39 10 17 24 10 18 9 18 . 23 4 . 6 6 . 8 6 Robot Miss Streak 7 | 2 3 . . 3 6 7 4 7 7 1 4 . 4 . . 2 2 . 3 2 Penetration Max 1 | . . . . 1 1 1 . . 1 . . . . . . . . . . . Secondary Targets 33 | . 3 . . 6 2 4 2 . 8 1 4 . 3 . . . . . . . Max Gunslinging Chain 1 | . 1 . . 1 1 1 1 . 1 1 1 . 1 . . . . . . . Shots Hit Robots 878 | 12 49 . . 154 85 127 86 59 118 16 37 . 70 1 . 5 5 . 37 17 Core Hits 608 | 6 25 . . 66 45 95 57 55 117 9 30 . 74 . . 6 1 . 12 10 Critical Kills 4 | . . . . . . 4 . . . . . . . . . . . . . . Critical Parts Destroyed 10 | . . . . . 4 2 1 1 2 . . . . . . . . . . . Critical Strikes 37 | 2 2 . . 10 4 6 1 1 2 . . . . . . . 1 . 7 1 Burn 14 | 2 2 . . 10 . . . . . . . . . . . . . . . . Destroy 14 | . . . . . 4 6 1 1 2 . . . . . . . . . . . Blast 9 | . . . . . . . . . . . . . . . . . 1 . 7 1 Melee Attacks 2 | . . . . . . . . . . 2 . . . . . . . . . . Impact . | . . . . . . . . . . . . . . . . . . . . . Slashing 2 | . . . . . . . . . . 2 . . . . . . . . . . Piercing . | . . . . . . . . . . . . . . . . . . . . . Sneak Attacks . | . . . . . . . . . . . . . . . . . . . . . Combat Hostiles . | . . . . . . . . . . . . . . . . . . . . . Follow-up Attacks . | . . . . . . . . . . . . . . . . . . . . . Damage Inflicted 19738 | 143 709 . . 2955 2448 2692 1442 963 2538 231 943 . 1645 . . 499 137 . 1449 944 Guns 16627 | 143 709 . . 2893 2373 2664 1442 963 2538 231 943 . 1645 . . . . . 83 . Cannons 2631 | . . . . 62 . . . . . . . . . . . 136 137 . 1360 936 Explosions 466 | . . . . . 75 28 . . . . . . . . . 363 . . . . Melee . | . . . . . . . . . . . . . . . . . . . . . Ramming 14 | . . . . . . . . . . . . . . . . . . . 6 8 Kinetic 15352 | . 37 . . 2097 2373 2664 1442 963 2036 87 185 . 939 . . 136 137 . 1320 936 Thermal 3866 | 143 672 . . 858 . . . . 502 144 758 . 706 . . . . . 83 . Explosive 363 | . . . . . . . . . . . . . . . . 363 . . . . Electromagnetic 143 | . . . . . 75 28 . . . . . . . . . . . . 40 . Impact . | . . . . . . . . . . . . . . . . . . . . . Slashing . | . . . . . . . . . . . . . . . . . . . . . Piercing . | . . . . . . . . . . . . . . . . . . . . . Highest Corruption 10 | . 1 1 . 10 10 . . 1 3 . . . . . . 6 6 6 3 5 Average Corruption 4 | . 1 1 . 9 10 . . 1 2 . . . . . . 2 6 6 2 3 Corruption Purged . | . . . . . . . . . . . . . . . . . . . . . Corruption Blocked . | . . . . . . . . . . . . . . . . . . . . . Effects 95 | . 5 . . 24 32 . . 1 13 . . . . . . 1 13 2 2 2 Message Errors 30 | . 2 . . 9 12 . . . 3 . . . . . . . 3 . . 1 Matter Fused 12 | . . . . 3 3 . . 1 1 . . . . . . 1 3 . . . Heat Flow Errors 16 | . 1 . . 5 5 . . . 1 . . . . . . . 3 . 1 . Energy Discharges 11 | . 1 . . 3 3 . . . . . . . . . . . 2 2 . . Parts Rejected 1 | . . . . . 1 . . . . . . . . . . . . . . . Parts Fused 1 | . . . . 1 . . . . . . . . . . . . . . . . Data Loss (minor) 9 | . 1 . . 1 1 . . . 3 . . . . . . . 2 . 1 . Data Loss (major) 3 | . . . . 2 1 . . . . . . . . . . . . . . . Misfires 4 | . . . . . 3 . . . 1 . . . . . . . . . . . Alerts 2 | . . . . . . . . . 1 . . . . . . . . . . 1 Misdirections 2 | . . . . . 2 . . . . . . . . . . . . . . . Weapon Failures 4 | . . . . . 1 . . . 3 . . . . . . . . . . . Overload Shots . | . . . . . . . . . . . . . . . . . . . . . Overflow Damage 156 | . . . . . . . . . . . . . . . . . 67 . 89 . Projectiles 156 | . . . . . . . . . . . . . . . . . 67 . 89 . Explosions . | . . . . . . . . . . . . . . . . . . . . . Melee . | . . . . . . . . . . . . . . . . . . . . . Knockbacks 23 | . . . . . . . . . . . . . . . . 1 . . 19 3 Impact . | . . . . . . . . . . . . . . . . . . . . . Kinetic 22 | . . . . . . . . . . . . . . . . . . . 19 3 Secondary 1 | . . . . . . . . . . . . . . . . 1 . . . . Self-Inflicted Damage 268 | . . . . 72 13 9 . . . . . . . . . 173 . . . 1 Shots 5 | . . . . 1 1 1 . . . . . . . . . 2 . . . . Rammed 3 | . . . . . . . . . . . . . . . . . . . 1 2 Targets Rammed 3 | . . . . . . . . . . . . . . . . . . . 1 2 Kicked . | . . . . . . . . . . . . . . . . . . . . . Crushed . | . . . . . . . . . . . . . . . . . . . . . Highest Temperature 514 | 210 312 . . 243 236 2 4 . 165 36 120 . 24 . . 192 187 . 514 243 Average Temperature 111 | 88 117 . . 82 44 2 2 . 20 16 43 . 11 . . 99 79 . 307 109 Received Heat Transfer 3099 | . 174 . . 531 297 369 390 177 351 . 75 . 315 . . . 27 . 294 99 Effects 18 | . 5 . . . . . . . . . . . . . . . . . 13 . Shutdowns 6 | . . . . . . . . . . . . . . . . . . . 6 . Energy Bleed 2 | . 1 . . . . . . . . . . . . . . . . . 1 . Interference 7 | . 4 . . . . . . . . . . . . . . . . . 3 . Matter Decay 1 | . . . . . . . . . . . . . . . . . . . 1 . Damage (major) 2 | . . . . . . . . . . . . . . . . . . . 2 . Siege Activations 11 | . . . . . . . . . . . 5 . 3 . . . . . 1 2 Total Turns 309 | . . . . . . . . . . . 108 . 143 . . . . . 31 27 Longest Duration 106 | . . . . . . . . . . . 74 . 106 . . . . . 31 18 Martial Activations . | . . . . . . . . . . . . . . . . . . . . . Shielding Activations . | . . . . . . . . . . . . . . . . . . . . . Robots Disrupted . | . . . . . . . . . . . . . . . . . . . . . Combat Hostiles . | . . . . . . . . . . . . . . . . . . . . . Robots Corrupted . | . . . . . . . . . . . . . . . . . . . . . Combat Hostiles . | . . . . . . . . . . . . . . . . . . . . . Parts Fried . | . . . . . . . . . . . . . . . . . . . . . Impact Corruptions . | . . . . . . . . . . . . . . . . . . . . . Robots Melted 1 | . . . . . . . . . . . 1 . . . . . . . . . Combat Hostiles 1 | . . . . . . . . . . . 1 . . . . . . . . . Parts Melted 16 | 1 3 . . 8 . . . . 2 1 1 . . . . . . . . . Heat Transferred 9559 | 532 1852 . . 2553 . . . . 1018 325 1700 . 1431 . . . . . 148 . Parts Sabotaged . | . . . . . . . . . . . . . . . . . . . . . Parts Stolen . | . . . . . . . . . . . . . . . . . . . . . Parts Stripped . | . . . . . . . . . . . . . . . . . . . . . Power Chain Reactions . | . . . . . . . . . . . . . . . . . . . . . Alert | -11 -10 -10 -8 -8 -8 -7 -7 -7 -7 -6 -6 -6 -6 -5 -5 -4 -4 -4 -3 -3 ------- Run | Yrd Mat Sub Mat Gar Mat Fac Gar Fac Gar Fac Gar Fac Gar Fac DSF Fac Upp Upp Res Gar Maximum Alert Level 3 | . . . . 3 3 1 3 2 2 1 1 . 2 1 . . . . . 1 Low Security (%) 48 | 100 100 . 100 8 . 29 . 86 29 54 49 100 4 . 100 100 . . 100 85 Level 1 25 | . . . . 13 . 70 9 11 36 45 50 . 39 100 . . . . . 14 Level 2 17 | . . . . 27 64 . 68 2 33 . . . 55 . . . . . . . Level 3 8 | . . . . 49 35 . 22 . . . . . . . . . . . . . Level 4 . | . . . . . . . . . . . . . . . . . . . . . Level 5 . | . . . . . . . . . . . . . . . . . . . . . High Security . | . . . . . . . . . . . . . . . . . . . . . Max Security . | . . . . . . . . . . . . . . . . . . . . . Peak Influence 977 | 15 159 . 7 977 859 397 740 410 602 315 322 168 534 254 159 154 . . 97 250 Initial 475 | . . . . . 475 382 275 388 . 315 27 168 103 254 159 80 . . . 60 Average 268 | 3 42 . 1 629 637 244 575 79 305 184 195 159 390 240 150 38 . . 29 135 Influence Increases 6228 | 25 367 . 7 1107 736 801 485 371 682 52 315 . 471 4 15 186 110 . 244 250 Destroy 0b10 Robot/C 3680 | . 240 . . 600 380 500 320 200 520 40 220 . 380 . . 40 . . 100 140 Destroy 0b10 Robot/NC 215 | 25 45 . . 5 65 60 . 5 . . . . . . . . 5 . 5 . Destroy Leader 512 | . 48 . . 20 130 124 20 70 30 10 10 . 10 . . 10 . . 20 10 Allied During Kill 76 | . . . . 32 34 7 . 2 . . . . 1 . . . . . . . Successful Hack 194 | . 19 . 7 28 4 . . 46 12 . . . 10 4 . 24 . . 40 . Disable Machine 195 | . . . . . 60 75 . 15 . . . . . . . 30 . . 15 . Anti-Garrison Action 600 | . . . . 300 . . 100 . 50 . 50 . 50 . . . . . . 50 Destroy Structure 261 | . . . . 47 33 5 . 3 10 2 5 . 20 . . 82 . . 34 20 Partial Spotted 30 | . . . . 15 . 15 . . . . . . . . . . . . . . Lose Combat Pursuer 465 | . 15 . . 60 30 15 45 30 60 . 30 . . . 15 . 105 . 30 30 Influence Decreases 6108 | 25 354 13 7 130 870 1251 138 1111 80 615 32 174 135 260 89 272 178 . 164 210 Entered New Map 2357 | . . 7 . . 502 461 118 352 . 287 12 154 45 230 69 74 26 . . 20 Time Decay 2460 | 25 354 6 7 . 318 530 . 418 . 318 . 20 . 10 . 168 152 . 134 . Lost Part 686 | . . . . 90 10 70 20 46 80 10 20 . 90 20 20 30 . . 30 150 Lost Ally 180 | . . . . 40 40 40 . 20 . . . . . . . . . . . 40 Purge Threat 425 | . . . . . . 150 . 275 . . . . . . . . . . . . Squads Dispatched 30 | . 4 . . . 4 9 . 7 . 1 . . . . . 2 . . 3 . Investigation 9 | . 2 . . . 2 2 . 1 . . . . . . . 1 . . 1 . Extermination 8 | . . . . . . 2 . 3 . 1 . . . . . 1 . . 1 . Reinforcement 10 | . 2 . . . 2 3 . 3 . . . . . . . . . . . . Assault . | . . . . . . . . . . . . . . . . . . . . . Garrison 3 | . . . . . . 2 . . . . . . . . . . . . 1 . Intercept . | . . . . . . . . . . . . . . . . . . . . . Searches Triggered . | . . . . . . . . . . . . . . . . . . . . . Construction Impeded 2 | . . . . . 1 1 . . . . . . . . . . . . . . Haulers Reinforced 1 | . . . . . . 1 . . . . . . . . . . . . . . Active Scanning Responses . | . . . . . . . . . . . . . . . . . . . . . Cargo Convoy Interrupts . | . . . . . . . . . . . . . . . . . . . . . Stealth | -11 -10 -10 -8 -8 -8 -7 -7 -7 -7 -6 -6 -6 -6 -5 -5 -4 -4 -4 -3 -3 --------- Run | Yrd Mat Sub Mat Gar Mat Fac Gar Fac Gar Fac Gar Fac Gar Fac DSF Fac Upp Upp Res Gar Distress Signals 2 | . . . . . 1 . . 1 . . . . . . . . . . . . Communications Jammed . | . . . . . . . . . . . . . . . . . . . . . Distress Signals . | . . . . . . . . . . . . . . . . . . . . . Times Spotted 264 | . 23 . . 35 30 30 19 16 28 5 11 1 25 . 1 4 7 . 9 20 Peak Tracking Total 9 | . 6 . . 4 5 5 6 4 6 2 3 1 7 . 1 2 7 . 4 9 Tactical Retreats 16 | . 1 . . 1 1 1 2 1 2 . 1 . . . 1 . 3 . 1 1 Traps | -11 -10 -10 -8 -8 -8 -7 -7 -7 -7 -6 -6 -6 -6 -5 -5 -4 -4 -4 -3 -3 ------- Run | Yrd Mat Sub Mat Gar Mat Fac Gar Fac Gar Fac Gar Fac Gar Fac DSF Fac Upp Upp Res Gar Traps Triggered 13 | . 1 . . 1 . 2 1 . 2 . 1 . 1 2 . . . . 1 1 Indirectly . | . . . . . . . . . . . . . . . . . . . . . Trap Hack Attempts . | . . . . . . . . . . . . . . . . . . . . . Triggered . | . . . . . . . . . . . . . . . . . . . . . Disarmed . | . . . . . . . . . . . . . . . . . . . . . Reprogrammed . | . . . . . . . . . . . . . . . . . . . . . Reused . | . . . . . . . . . . . . . . . . . . . . . Traps Extracted . | . . . . . . . . . . . . . . . . . . . . . Installed . | . . . . . . . . . . . . . . . . . . . . . Triggered . | . . . . . . . . . . . . . . . . . . . . . Machines | -11 -10 -10 -8 -8 -8 -7 -7 -7 -7 -6 -6 -6 -6 -5 -5 -4 -4 -4 -3 -3 ---------- Run | Yrd Mat Sub Mat Gar Mat Fac Gar Fac Gar Fac Gar Fac Gar Fac DSF Fac Upp Upp Res Gar Machines Disabled 23 | . . . . 4 4 5 2 1 1 . 1 . 1 . . 2 . . 1 1 Max in Single Turn 4 | . . . . 2 1 4 1 . 1 . 1 . 1 . . 2 . . 1 1 Garrison Relay 8 | . . . . 2 . . 2 . 1 . 1 . 1 . . . . . . 1 Phase Generator 1 | . . . . 1 . . . . . . . . . . . . . . . . Machines Repaired . | . . . . . . . . . . . . . . . . . . . . . Machines Dismantled . | . . . . . . . . . . . . . . . . . . . . . Machines Sabotaged . | . . . . . . . . . . . . . . . . . . . . . Overloaded Fab Kills . | . . . . . . . . . . . . . . . . . . . . . Hacking | -11 -10 -10 -8 -8 -8 -7 -7 -7 -7 -6 -6 -6 -6 -5 -5 -4 -4 -4 -3 -3 --------- Run | Yrd Mat Sub Mat Gar Mat Fac Gar Fac Gar Fac Gar Fac Gar Fac DSF Fac Upp Upp Res Gar Machines Accessed 40 | . 4 . 2 3 2 8 . 8 1 2 1 1 1 1 . 3 . . 3 . Terminals 27 | . 4 . 1 3 2 5 . 7 1 . 1 . 1 1 . 1 . . . . Fabricators 2 | . . . . . . . . . . 1 . . . . . 1 . . . . Repair Stations . | . . . . . . . . . . . . . . . . . . . . . Recycling Units 2 | . . . . . . 2 . . . . . . . . . . . . . . Scanalyzers 3 | . . . . . . . . . . . . . . . . 1 . . 2 . Garrison Access 6 | . . . 1 . . 1 . 1 . 1 . 1 . . . . . . 1 . Total Hacks 100 | . 10 . 5 6 6 14 . 18 3 3 2 1 2 1 . 18 . . 11 . Successful 44 | . 2 . 3 2 2 4 . 7 1 3 1 1 1 1 . 9 . . 7 . Failed 56 | . 8 . 2 4 4 10 . 11 2 . 1 . 1 . . 9 . . 4 . Catastrophic 12 | . 1 . . 2 1 3 . 2 . . . . . . . 3 . . . . Database Lockouts . | . . . . . . . . . . . . . . . . . . . . . Manual 25 | . 7 . 4 . . 3 . 7 . . . . . . . 4 . . . . Terminals 65 | . 10 . 4 6 6 9 . 17 3 . 2 . 2 1 . 5 . . . . Fabricators 6 | . . . . . . . . . . 2 . . . . . 4 . . . . Repair Stations . | . . . . . . . . . . . . . . . . . . . . . Recycling Units 4 | . . . . . . 4 . . . . . . . . . . . . . . Scanalyzers 19 | . . . . . . . . . . . . . . . . 9 . . 10 . Garrison Access 6 | . . . 1 . . 1 . 1 . 1 . 1 . . . . . . 1 . Terminal Hacks 19 | . 2 . 2 2 2 . . 6 1 . 1 . 1 1 . 1 . . . . Part Schematic 1 | . . . . . . . . . . . . . . . . 1 . . . . Robot Analysis 3 | . . . 2 . . . . 1 . . . . . . . . . . . . Open DSF 1 | . . . . . . . . . . . . . . 1 . . . . . . Emergency Access Points 3 | . . . . 1 . . . 1 . . . . 1 . . . . . . . Garrison Index 1 | . . . . . . . . 1 . . . . . . . . . . . . Locate Traps 1 | . . . . . 1 . . . . . . . . . . . . . . . Zone Layout 6 | . 2 . . . 1 . . 3 . . . . . . . . . . . . Garrison Registry 1 | . . . . 1 . . . . . . . . . . . . . . . . Patrol Navigation 2 | . . . . . . . . . 1 . 1 . . . . . . . . . Fabricator Hacks 5 | . . . . . . . . . . 2 . . . . . 3 . . . . Network Status 2 | . . . . . . . . . . 1 . . . . . 1 . . . . Load Schematic 1 | . . . . . . . . . . . . . . . . 1 . . . . Build 2 | . . . . . . . . . . 1 . . . . . 1 . . . . Repair Station Hacks . | . . . . . . . . . . . . . . . . . . . . . Recycling Unit Hacks 3 | . . . . . . 3 . . . . . . . . . . . . . . Process 1 | . . . . . . 1 . . . . . . . . . . . . . . Retrieve Matter 2 | . . . . . . 2 . . . . . . . . . . . . . . Scanalyzer 11 | . . . . . . . . . . . . . . . . 5 . . 6 . Insert Component 4 | . . . . . . . . . . . . . . . . 2 . . 2 . Analyze 4 | . . . . . . . . . . . . . . . . 2 . . 2 . Retrieve Study 3 | . . . . . . . . . . . . . . . . 1 . . 2 . Garrison Access Hacks 6 | . . . 1 . . 1 . 1 . 1 . 1 . . . . . . 1 . Unlock Access 6 | . . . 1 . . 1 . 1 . 1 . 1 . . . . . . 1 . Unauthorized Hacks . | . . . . . . . . . . . . . . . . . . . . . Terminals . | . . . . . . . . . . . . . . . . . . . . . Fabricators . | . . . . . . . . . . . . . . . . . . . . . Repair Stations . | . . . . . . . . . . . . . . . . . . . . . Recycling Units . | . . . . . . . . . . . . . . . . . . . . . Scanalyzers . | . . . . . . . . . . . . . . . . . . . . . Garrison Access . | . . . . . . . . . . . . . . . . . . . . . Data Cores Recovered . | . . . . . . . . . . . . . . . . . . . . . Used . | . . . . . . . . . . . . . . . . . . . . . Hacking Detections 32 | . 4 . 1 2 2 6 . 7 1 . 1 1 1 . . 3 . . 3 . Full Trace Events 6 | . 1 . . 1 1 1 . 1 . . . . . . . 1 . . . . Feedback Events 1 | . 1 . . . . . . . . . . . . . . . . . . . Corruption 1 | . 1 . . . . . . . . . . . . . . . . . . . Feedback Blocked . | . . . . . . . . . . . . . . . . . . . . . Robot Schematics Acquired . | . . . . . . . . . . . . . . . . . . . . . Robots Built . | . . . . . . . . . . . . . . . . . . . . . Authchips . | . . . . . . . . . . . . . . . . . . . . . Time . | . . . . . . . . . . . . . . . . . . . . . Total Robot Build Rating . | . . . . . . . . . . . . . . . . . . . . . Part Schematics Acquired 5 | . . . . . . . . . . . . . . . . 3 . . 2 . Parts Built 1 | . . . . . . . . . . 1 . . . . . . . . . . Authchips . | . . . . . . . . . . . . . . . . . . . . . Time 245 | . . . . . . . . . . 128 . . . . . 117 . . . . Total Part Build Rating 8 | . . . . . . . . . . 8 . . . . . . . . . . Part Studies Acquired 3 | . . . . . . . . . . . . . . . . 1 . . 2 . Parts Repaired . | . . . . . . . . . . . . . . . . . . . . . Time . | . . . . . . . . . . . . . . . . . . . . . Parts Recycled . | . . . . . . . . . . . . . . . . . . . . . Recycled Matter . | . . . . . . . . . . . . . . . . . . . . . Retrieved Matter . | . . . . . . . . . . . . . . . . . . . . . Retrieved Components . | . . . . . . . . . . . . . . . . . . . . . Parts Scanalyzed 4 | . . . . . . . . . . . . . . . . 2 . . 2 . Part Schematics Acquired 4 | . . . . . . . . . . . . . . . . 2 . . 2 . Parts Damaged 1 | . . . . . . . . . . . . . . . . . . . 1 . Bothacking | -11 -10 -10 -8 -8 -8 -7 -7 -7 -7 -6 -6 -6 -6 -5 -5 -4 -4 -4 -3 -3 ------------ Run | Yrd Mat Sub Mat Gar Mat Fac Gar Fac Gar Fac Gar Fac Gar Fac DSF Fac Upp Upp Res Gar Used RIF Installer 5 | . . . . 1 . . 1 . 2 . 1 . . . . . . . . . Robot Detection 1 | . . . . . . . 1 . . . . . . . . . . . . . Watcher Feeds 1 | . . . . . . . . . 1 . . . . . . . . . . . Patrol Navigation 1 | . . . . . . . . . 1 . . . . . . . . . . . Autooverride 1 | . . . . . . . . . . . 1 . . . . . . . . . Robots Hacked 19 | . . . . . . 7 . 3 . 4 . . 1 1 . . 1 . . 2 Non-combat 12 | . . . . . . 5 . 2 . 3 . . . 1 . . 1 . . . Combat 7 | . . . . . . 2 . 1 . 1 . . 1 . . . . . . 2 Autooverrided 2 | . . . . . . . . . . . . . 1 . . . . . . 1 Robot Hacks Applied 20 | . . . . . . 8 . 4 . 4 . . . 1 . . 1 . . 2 parse_system 2 | . . . . . . . . . . 1 . . . . . . 1 . . . map_walls 2 | . . . . . . 1 . . . 1 . . . . . . . . . . map_earth 1 | . . . . . . 1 . . . . . . . . . . . . . . drop_inventory 2 | . . . . . . 1 . . . 1 . . . . . . . . . . release_backups 1 | . . . . . . . . . . . . . . 1 . . . . . . purge_threat 3 | . . . . . . 1 . 2 . . . . . . . . . . . . locate_traps 1 | . . . . . . . . 1 . . . . . . . . . . . . mark_security 1 | . . . . . . . . . . 1 . . . . . . . . . . find_garrison 1 | . . . . . . 1 . . . . . . . . . . . . . . amplify_resonance 1 | . . . . . . . . . . . . . . . . . . . . 1 formatsys_low 1 | . . . . . . 1 . . . . . . . . . . . . . . formatsys_high 4 | . . . . . . 2 . 1 . . . . . . . . . . . 1 Relay Couplers Released 33 | . . . . 10 . . 8 . 5 . 3 . 4 . . . . . . 3 Machine Destruction 33 | . . . . 10 . . 8 . 5 . 3 . 4 . . . . . . 3 Attached 10 | . . . . . . 2 1 1 . 1 2 . . . . . . . . 3 Fabnet Peak Effective % . | . . . . . . . . . . . . . . . . . . . . . Robots Rewired 6 | . . . . 6 . . . . . . . . . . . . . . . . Allies Hacked . | . . . . . . . . . . . . . . . . . . . . . Hacks Repelled . | . . . . . . . . . . . . . . . . . . . . . Allies | -11 -10 -10 -8 -8 -8 -7 -7 -7 -7 -6 -6 -6 -6 -5 -5 -4 -4 -4 -3 -3 -------- Run | Yrd Mat Sub Mat Gar Mat Fac Gar Fac Gar Fac Gar Fac Gar Fac DSF Fac Upp Upp Res Gar Total Allies 13 | . . . . 6 . 3 . 1 . . . . 1 . . . . . . 2 Largest Group 6 | . . . . 6 4 2 . 1 . . . . 1 . . . . . . 1 Highest-Rated Group 108 | . . . . 108 72 32 . 16 . . . . 29 . . . . . . 47 Highest-Rated Ally 47 | . . . . 18 18 16 . 16 . . . . 29 . . . . . . 47 Total Orders . | . . . . . . . . . . . . . . . . . . . . . Ally Attacks 55 | . . . . 20 19 5 . 6 . . . . 2 . . . . . . 3 Total Damage 854 | . . . . 298 355 49 . 32 . . . . 40 . . . . . . 80 Kills 14 | . . . . 5 6 1 . 1 . . . . 1 . . . . . . . Allies Corrupted . | . . . . . . . . . . . . . . . . . . . . . Allies Melted . | . . . . . . . . . . . . . . . . . . . . . Intel | -11 -10 -10 -8 -8 -8 -7 -7 -7 -7 -6 -6 -6 -6 -5 -5 -4 -4 -4 -3 -3 ------- Run | Yrd Mat Sub Mat Gar Mat Fac Gar Fac Gar Fac Gar Fac Gar Fac DSF Fac Upp Upp Res Gar Active Infowar (turns) 1476 | 23 188 . . . . . . 441 388 . . . . . . . 59 44 333 . Terrain 209 | 23 186 . . . . . . . . . . . . . . . . . . . T.N.C. 35 | . 35 . . . . . . . . . . . . . . . . . . . Machine Analysis 829 | . . . . . . . . 441 388 . . . . . . . . . . . Cloaking 436 | . . . . . . . . . . . . . . . . . 59 44 333 . Robot Analysis Total 3 | . . . 2 . . . . 1 . . . . . . . . . . . . Derelict Logs Recovered 2 | . . 1 . . . . . . . . . . . . . . . 1 . . Drone Launches . | . . . . . . . . . . . . . . . . . . . . . Drone Recoveries . | . . . . . . . . . . . . . . . . . . . . . Exploration | -11 -10 -10 -8 -8 -8 -7 -7 -7 -7 -6 -6 -6 -6 -5 -5 -4 -4 -4 -3 -3 ------------- Run | Yrd Mat Sub Mat Gar Mat Fac Gar Fac Gar Fac Gar Fac Gar Fac DSF Fac Upp Upp Res Gar Turns Passed 12642 | 120 1248 46 54 1363 706 1486 486 1231 1064 702 869 51 1042 35 87 689 464 44 557 298 Spaces Moved 6206 | 65 853 36 42 611 322 678 218 681 492 353 288 28 399 38 51 216 502 29 167 137 Core 427 | 7 . . . . . . . . . . . . 4 24 . 13 348 . . 31 Treads 4183 | . . . . 425 322 678 218 681 492 353 288 28 395 . . . 114 . 83 106 Legs 1175 | 58 853 36 42 186 . . . . . . . . . . . . . . . . Wheels 153 | . . . . . . . . . . . . . . . . . 40 29 84 . Hover 172 | . . . . . . . . . . . . . . 14 51 107 . . . . Flight 96 | . . . . . . . . . . . . . . . . 96 . . . . Fastest Speed 50 | 50 120 120 120 120 153 153 153 153 145 152 162 180 50 50 76 50 50 150 140 50 Average Speed 148 | 112 120 120 120 150 160 153 153 156 153 152 165 180 178 60 147 268 84 150 155 152 Slowest Speed 680 | 120 120 120 120 190 163 153 153 158 158 162 180 180 180 80 160 680 240 150 170 170 Overloaded Moves . | . . . . . . . . . . . . . . . . . . . . . Propulsion Burnouts . | . . . . . . . . . . . . . . . . . . . . . Robots Hopped . | . . . . . . . . . . . . . . . . . . . . . Potential Cave-ins . | . . . . . . . . . . . . . . . . . . . . . Cave-ins Triggered . | . . . . . . . . . . . . . . . . . . . . . Exploration Rate (%) 28 | 3 93 3 9 69 46 23 34 19 44 17 37 2 58 2 44 4 56 8 6 23 Regions Visited 20 Branch Regions 3 Pre-discovered Areas . | . . . . . . . . . . . . . . . . . . . . . Known Exits Taken 7 | . . . 1 . . 1 . 1 . 1 . 1 . 1 . . . . 1 . Unknown Exits Taken 7 | 1 1 1 . . 1 . . . . . . . . . . 1 1 1 . . Scrap Searched 3 | . . . . . . . . . . . . . . . . . 3 . . . Spaces Dug 8 | . . . . . 2 1 . 3 . 2 . . . . . . . . . . Terrain Destroyed 185 | . . . . 72 32 2 1 3 . 2 . . . . . 48 3 . 16 6 Melee 2 | . . . . . . . . . . 2 . . . . . . . . . . Projectile 70 | . . . . 1 32 1 1 3 . . . . . . . 7 3 . 16 6 AOE 112 | . . . . 71 . . . . . . . . . . . 41 . . . . Terrain Rammed . | . . . . . . . . . . . . . . . . . . . . . Walls Destroyed . | . . . . . . . . . . . . . . . . . . . . . Machines Disabled . | . . . . . . . . . . . . . . . . . . . . . Actions | -11 -10 -10 -8 -8 -8 -7 -7 -7 -7 -6 -6 -6 -6 -5 -5 -4 -4 -4 -3 -3 --------- Run | Yrd Mat Sub Mat Gar Mat Fac Gar Fac Gar Fac Gar Fac Gar Fac DSF Fac Upp Upp Res Gar Total 8647 | 91 1004 39 45 898 413 994 288 779 675 503 635 28 650 46 63 320 533 29 419 195 Wait 1484 | 8 82 . . 94 3 203 14 31 93 114 319 . 216 . . 83 7 . 204 13 Move 6191 | 64 852 35 42 610 321 678 217 681 491 353 287 28 397 37 50 215 501 28 167 137 Hop . | . . . . . . . . . . . . . . . . . . . . . Pick Up 69 | 4 3 . 1 10 10 10 4 6 5 5 . . . 1 3 . 3 . 3 1 Fast Attach 86 | 6 5 2 1 8 1 5 . 5 7 3 1 . 1 6 5 3 11 . 10 6 Attach 35 | . . . 1 7 1 6 2 3 2 1 . . . 1 . 6 2 . 1 2 Detach 11 | . . . . 2 . . . . . . . . . . 1 6 . . 1 1 Swap 69 | . 9 . . 6 10 11 5 5 6 7 6 . 1 . . . . 1 2 . Drop 103 | . 13 2 . 7 17 8 3 7 9 7 1 . 1 . 4 4 1 . 10 9 Fire 513 | 9 40 . . 84 49 73 43 41 62 11 21 . 34 1 . 3 8 . 20 14 Melee 2 | . . . . . . . . . . 2 . . . . . . . . . . Ram 2 | . . . . . 1 . . . . . . . . . . . . . . 1 Kick . | . . . . . . . . . . . . . . . . . . . . . Crush 2 | . . . . . . . . . . . . . . . . . . . 1 1 Escape Stasis 3 | . . . . . . . . . . . . . . . . . . . . 3 Rewire 77 | . . . . 70 . . . . . . . . . . . . . . . 7 Trap . | . . . . . . . . . . . . . . . . . . . . . Miscellaneous . | . . . . . . . . . . . . . . . . . . . . . Route ------- -11/Scrapyard -10/Materials (discovered 6 exits: [*Mat x3] / [*Min x2] / [*Sub]) -10/Subcaves -8/Materials -8/Garrison (discovered 4 exits: *Mat x4) -8/Materials -7/Factory (discovered 3 exits: *Fac / [*Low] / Gar) -7/Garrison -7/Factory (discovered 2 exits: *Fac / Gar) -7/Garrison -6/Factory -6/Garrison -6/Factory -6/Garrison (discovered 2 exits: *Fac x2) -5/Factory -5/DSF -4/Factory -4/Upper Caves -4/Upper Caves -3/Research -3/Garrison History --------- Turn | Location | Event 6 | -11/Scrapyard | Discovered new exit (range 16) 121 | -11/Scrapyard | Entered Materials 122 | -10/Materials | Met a group of wandering Federalists 149 | -10/Materials | Discovered new exit (range 7) 244 | -10/Materials | Discovered new exit (range 7) 280 | -10/Materials | Lost 3 allies 442 | -10/Materials | Discovered new exit (range 10) 669 | -10/Materials | Build established: Mutant 708 | -10/Materials | Discovered new exit (range 16) 1224 | -10/Materials | Discovered new exit (range 16) 1350 | -10/Materials | Discovered new exit (range 10) 1369 | -10/Materials | Entered Subcaves 1370 | -10/Subcaves | Approached by a straggling Scientist 1371 | -10/Subcaves | Shifting Twisted Machinery released Mak. Laser 1376 | -10/Subcaves | Shifting Twisted Machinery released Mak. Shrapnel Gun 1377 | -10/Subcaves | Discovered new exit (range 9) 1391 | -10/Subcaves | Shifting Twisted Machinery released Sub. Beam Cannon 1415 | -10/Subcaves | Entered Materials 1415 | -8/Materials | Evolved 4 slots: Propulsion x1, Utility x2, Weapon x1 1469 | -8/Materials | Identified exit to Garrison 1469 | -8/Materials | Entered Garrison 1589 | -8/Garrison | Garrison Relay disabled 1705 | -8/Garrison | Phase Generator disabled 1721 | -8/Garrison | Triggered checkpoint 1759 | -8/Garrison | Triggered checkpoint 1864 | -8/Garrison | Lost 3 parts (1p1n1w) 1884 | -8/Garrison | Garrison Relay disabled 1903 | -8/Garrison | Triggered checkpoint 1958 | -8/Garrison | Discovered new exit (range 10) 2039 | -8/Garrison | Triggered checkpoint 2196 | -8/Garrison | Discovered new exit (range 61) 2196 | -8/Garrison | Discovered new exit (range 33) 2196 | -8/Garrison | Discovered new exit (range 36) 2196 | -8/Garrison | Discovered new exit (range 70) 2251 | -8/Garrison | System corruption reached 10% 2281 | -8/Garrison | Lost 4 parts (1p2u1w) 2349 | -8/Garrison | Triggered checkpoint 2359 | -8/Garrison | Triggered checkpoint 2503 | -8/Garrison | Triggered checkpoint 2698 | -8/Garrison | Installed Relay Interface Framework 2783 | -8/Garrison | Build established: Commander-Tank 2832 | -8/Garrison | Entered Materials 2832 | -8/Materials | Accompanied by 4 allies 3135 | -8/Materials | Build established: Scavenger-Tank 3339 | -8/Materials | Destroyed 7 combat bots 3514 | -8/Materials | Discovered new exit (range 16) 3538 | -8/Materials | Entered Factory 3538 | -7/Factory | Evolved 2 slots: Utility x2 3687 | -7/Factory | Build established: Tank 4054 | -7/Factory | Discovered new exit (range 11) 4766 | -7/Factory | Discovered new exit (range 12) 4880 | -7/Factory | Lost 3 parts (2u1w) 4891 | -7/Factory | Garrison activated, responded to threat 5024 | -7/Factory | Identified exit to Garrison 5024 | -7/Factory | Entered Garrison 5101 | -7/Garrison | Destroyed 7 combat bots 5118 | -7/Garrison | Garrison Relay disabled 5258 | -7/Garrison | Build established: Scavenger-Tank 5277 | -7/Garrison | Triggered checkpoint 5352 | -7/Garrison | Triggered checkpoint 5382 | -7/Garrison | Expanded RIF knowledge: Robot Detection 5402 | -7/Garrison | Garrison Relay disabled 5487 | -7/Garrison | Discovered new exit (range 15) 5510 | -7/Garrison | Entered Factory 6400 | -7/Factory | Discovered new exit (range 12) 6741 | -7/Factory | Identified exit to Garrison 6741 | -7/Factory | Entered Garrison 6743 | -7/Garrison | Build established: Scavenger-Gunner 6877 | -7/Garrison | Triggered checkpoint 6920 | -7/Garrison | Expanded RIF knowledge: Watcher Feeds 7055 | -7/Garrison | Triggered checkpoint 7103 | -7/Garrison | Core integrity fell below 50% 7253 | -7/Garrison | Triggered checkpoint 7357 | -7/Garrison | Triggered checkpoint 7516 | -7/Garrison | Discovered new exit (range 10) 7533 | -7/Garrison | Triggered checkpoint 7560 | -7/Garrison | Garrison Relay disabled 7667 | -7/Garrison | Triggered checkpoint 7747 | -7/Garrison | Expanded RIF knowledge: Patrol Navigation 7805 | -7/Garrison | Entered Factory 7805 | -6/Factory | Evolved 2 slots: Power x1, Utility x1 8488 | -6/Factory | Fabricated Imp. Heavy Siege Treads (x1) 8507 | -6/Factory | Identified exit to Garrison 8507 | -6/Factory | Entered Garrison 8539 | -6/Garrison | Triggered checkpoint 8586 | -6/Garrison | Garrison Relay disabled 8695 | -6/Garrison | Triggered checkpoint 8786 | -6/Garrison | Build established: Hacker-Tank 9135 | -6/Garrison | Triggered checkpoint 9217 | -6/Garrison | Discovered new exit (range 10) 9260 | -6/Garrison | Expanded RIF knowledge: Autooverride 9305 | -6/Garrison | Triggered checkpoint 9376 | -6/Garrison | Entered Factory 9427 | -6/Factory | Identified exit to Garrison 9427 | -6/Factory | Entered Garrison 9455 | -6/Garrison | Triggered checkpoint 9477 | -6/Garrison | Garrison Relay disabled 9629 | -6/Garrison | Triggered checkpoint 10017 | -6/Garrison | Triggered checkpoint 10111 | -6/Garrison | Triggered checkpoint 10165 | -6/Garrison | Discovered new exit (range 14) 10331 | -6/Garrison | Triggered checkpoint 10421 | -6/Garrison | Discovered new exit (range 10) 10457 | -6/Garrison | Spotted B-75 Beast 10469 | -6/Garrison | Entered Factory 10469 | -5/Factory | Evolved 2 slots: Utility x1, Weapon x1 10504 | -5/Factory | Identified exit to DSF 10504 | -5/Factory | Entered DSF 10519 | -5/DSF | Lost 8 parts (3n2u3w) 10534 | -5/DSF | Discovered new exit (range 13) 10537 | -5/DSF | Additional patrols routed to DSF 10591 | -5/DSF | Entered Factory 10591 | -4/Factory | Evolved 2 slots: Propulsion x1, Utility x1 10742 | -4/Factory | Discovered new exit (range 15) 10756 | -4/Factory | Build established: Hacker-Mutant 11280 | -4/Factory | Entered Upper Caves 11305 | -4/Upper Caves | Lost 3 parts (1p1n1u) 11338 | -4/Upper Caves | Attracted the attention of an 0b10 outpost 11420 | -4/Upper Caves | Spotted B-86 Titan 11639 | -4/Upper Caves | Found DCF Scrap (13 items) 11666 | -4/Upper Caves | Encountered a Warlord checkpoint 11738 | -4/Upper Caves | Discovered new exit (range 5) 11744 | -4/Upper Caves | Entered another Upper Caves area 11764 | -4/Upper Caves | Discovered new exit (range 5) 11776 | -4/Upper Caves | Learned Research terminal intel 11788 | -4/Upper Caves | Entered Research 11788 | -3/Research | Evolved 2 slots: Utility x2 11789 | -3/Research | Loaded intel: 24 terminal locations 11948 | -3/Research | Build established: Derelict-Tank 12333 | -3/Research | Garrison activated, responded to threat 12345 | -3/Research | Identified exit to Garrison 12345 | -3/Research | Entered Garrison 12381 | -3/Garrison | Triggered checkpoint 12403 | -3/Garrison | Build established: Hacker-Tank 12432 | -3/Garrison | Garrison Relay disabled 12581 | -3/Garrison | Spotted B-86 Titan 12612 | -3/Garrison | Core integrity fell below 50% 12622 | -3/Garrison | Core integrity fell below 20% 12643 | -3/Garrison | Destroyed by S-43 Plague with Heavy Machine Gun Last Messages --------------- 12607_ Triggered Stasis Trap. 12607_ A bubble of rippling energy engulfs the area. 12607_ Field strength at 94. 12608_ System corrupted: IFF burst signal emitted. 12608_ Relay Coupler [NC] destroyed. 12608_ Field strength at 76. 12609_ Field strength at 59. 12610_ System Shield destroyed. 12610_ Field strength at 40. 12612_ Stasis field depleted. 12615_ Relay Coupler [NC] destroyed. 12616_ Relay Coupler [Grunt] destroyed. 12631_ B-74 Champion springs to life. 12633_ Slammed into B-74 Champion. 12633_ Imp. Power Shielding destroyed. 12633_ System corrupted by crushing effect (+2). 12633_ Knocked back. 12636_ Attempting to rewire B-74 Champion. Map ----- +----------------------------------------------------+ | ?????????????????????????????????????????? | | ?????????????????????????????????????????? | | ?????????????????????????????????????????? | | ?????????????????????????????????????????? | | ?????????????????????????????????????????? | | ?????????????????????????????????????????? | | ?????????????????????????????????????????? | | ?????????????????????????????????????????? | | ?????????????????????????????????????????? | | ?????????????????????????????????????????? | | ?????????????????????????????????????????? | | ????????????????????? ???????????????????? | | ????????????????????? ???????????????????? | | ????????????????????? ???????????????????? | | ????????????????????? ???????????????????? | | ?????? ???????????? ???????????????????? | | ?????# #??????????? ???????????????????? | | ?????# #??????????? ???????????????????? | | ?????# #??????????# #??????????????????? | | ?????" #?????????? ??????????????????? | | ?????" #??????????# #??????????????????? | | ?????" #??????????# #??????????????????? | | ?????# #??????????# #??????????????????? | | ?????# #??????????# #??????????????????? | | ?????# #?????????## #######????????????? | | ?????# #?????????# sbss@ #????????????? | | #????# #?????????##s###bbb#????????????? | | ###### #??????????# #?#####????????????? | | #??????????# #??????????????????? | | ############ #??????????????????? | | #??????????????????? | | #######################??????????????????? | | ##???????????????????????????????????????? | | #???????????????????????????????????????? | | #???????????????????????????????????????? | | #???????????????????????????????????????? | | ###?????????????????????????????????????? | | ## #?????????????????????????????????????? | | "#######???????????????????????????????? | | = % #???????????????????????????????? | | ] #???????????????????????????????? | | "### #???????????????????????????????? | | " ##?# #???????????????????????????????? | | ## #??# #???????????????????????????????? | | ## #??# #???????????????????????????????? | | ?# #??# #???????????????????????????????? | | ? ??# #???????????????????????????????? | | ?# #??# #???????????????????????????????? | | ?# #??# #???????????????????????????????? | | ?? #??# #???????????????????????????????? | +----------------------------------------------------+ Best States ------------- Heat Dissipation 67 Energy Generation 31 Energy Capacity 290 Matter Stores 300 Matter Capacity 300 Sight Range 16 Terrain Scan Range 16 Terrain Scan Density 10 Cloak Strength 3 Armor Coverage 600 Resistance: KI 20 Power Shielding 66 Propulsion Shielding 33 Weapon Shielding 66 Evasion (%) 55 Targeting Accuracy 20 Recoil Reduction 4 Matter Filtering 50 Offensive Hacking 20 Defensive Hacking 30 Relay Coupler Types 2 Relay Coupler Value 134 Item Schematics ----------------- Hyp. Railgun | -4/Factory | Hacked Mass Driver | -4/Factory | Scanalyzed Impulse Thruster | -4/Factory | Scanalyzed Spk. Medium Treads | -3/Research | Scanalyzed Centrium Wheel | -3/Research | Scanalyzed Robot Schematics ------------------ None Fabricated ------------ Imp. Heavy Siege Treads | x1 | -6/Factory | Preloaded Repaired ---------- Nothing Studied --------- Mass Driver | -4/Factory | Hacked Centrium Wheel | -3/Research | Hacked HERF Cannon | -3/Research | Hacked Alien Tech Used ----------------- None Achievements -------------- Hack The Planet Versatile Challenges ------------ None Game ------ Seed NuclearDispersalMachine Manual? 0 Play Time 01:46:40 Cumulative 200.9 hours Start 2026.06.16 @ 21:12:45 End 2026.06.17 @ 15:32:36 Sessions 13 Manual Loads 0 Difficulty Rogue Special Mode None Game No. 280 Rogue 280 Adventurer 0 Explorer 0 Win Type - Total 2 Types 1/0/0/1/0/0/0/0/0/0 Lore% 73 Gallery% 61 Achievement% 48 Wizard Run 0 Options --------- Layout 2 ASCII 0 Keyboard 0 Movement Mouse Keybinds 0 Fullscreen 1 Font 24/Smallcaps Map View 50x44 Zoom Use 0% Tactical HUD 1 Map Filters NONE Filters NONE Steam 1 RUN: 55f254ef-6696-48a7-b376-fffc9f613cd4